bitfinex-derivatives/quotes_ETHF0:USTF0_20250520
["timestamp","ask_amount","ask_price","bid_price","bid_amount"]
[1747699676426,3.2078,2535.8,2535.7,0.78847]
[1747699676633,0.65204211,2536.0,2535.6,0.78848]
[1747699676831,10.73820128,2535.8,2535.7,0.78846]
[1747699677336,0.65204211,2536.0,2535.6,0.78849]
[1747699677636,10.73820128,2535.7,2535.6,0.78847]
[1747699678438,0.65204211,2536.0,2535.9,0.78841]
[1747699678733,11.39024339,2536.0,2535.9,0.78841]
[1747699679131,0.65204211,2536.0,2535.9,0.78841]
[1747699679730,1.44042211,2536.0,2535.9,1.3036]
[1747699680138,1.44042211,2536.0,2535.9,2.09201]
[1747699680339,11.39024339,2536.0,2535.9,2.09201]
[1747699680536,11.39024339,2536.0,2535.5,3.2078]
[1747699680738,10.73820128,2535.7,2535.5,3.2078]
[1747699681039,10.73820128,2535.7,2535.6,0.7885]
[1747699682439,0.00591378,2536.2,2535.7,1.97113]
[1747699682736,10.73820128,2536.1,2536.0,0.78838]
[1747699684137,10.73820128,2536.1,2535.8,4.5977]
[1747699684138,0.78838,2536.0,2535.9,0.78839]
[1747699684439,11.52658128,2536.0,2535.9,0.78839]
[1747699684834,0.78841,2535.9,2535.8,4.5977]
[1747699685041,11.52661128,2535.9,2535.8,3.2078]
[1747699685245,0.78847,2535.7,2535.6,0.7885]
[1747699685740,11.52667128,2535.7,2535.6,0.7885]
[1747699686436,11.52667128,2535.7,2535.5,1.3247]
[1747699686633,10.73820128,2535.6,2535.5,2.11322]
[1747699687039,0.78849,2535.7,2535.6,0.7885]
[1747699687341,10.73820128,2535.6,2535.5,2.11323]
[1747699687739,0.78846,2535.8,2535.7,0.78847]
[1747699688134,11.52666128,2535.8,2535.7,0.78847]
[1747699688736,0.78847,2535.7,2535.6,0.78848]
[1747699688942,10.73820128,2535.6,2535.5,2.11321]
[1747699689341,0.78846,2535.8,2535.7,0.78847]
[1747699690238,11.52666128,2535.8,2535.7,0.78847]
[1747699690639,12.84406128,2535.8,2535.7,0.78847]
[1747699692140,12.05560128,2535.8,2535.7,0.78847]
[1747699692345,0.6898,2535.9,2535.8,0.78844]
[1747699692748,2.0475,2535.9,2535.8,0.78844]
[1747699695048,13.57411128,2535.9,2535.8,0.78844]
[1747699695243,12.78570128,2535.9,2535.5,4.5325]
[1747699695451,0.7885,2535.6,2535.5,5.32101]
[1747699695646,0.7885,2535.6,2535.5,2.11321]
[1747699695956,1.3767,2535.6,2535.5,2.11321]
[1747699696446,3.99619,2536.0,2535.6,1.97126]
[1747699696647,10.73820128,2535.9,2535.7,1.3137]
[1747699696844,0.65204211,2536.1,2535.7,1.3137]
[1747699697050,0.65204211,2536.1,2536.0,0.78838]
[1747699698349,1.44039211,2536.1,2536.0,0.78838]
[1747699699150,0.65204211,2536.1,2536.0,0.78838]
[1747699701754,11.39024339,2536.1,2535.9,2.0983]
[1747699701945,1.3601,2536.0,2535.9,2.0983]
[1747699702146,11.39024339,2536.1,2536.0,0.78838]
[1747699702349,11.39024339,2536.1,2536.0,2.16008]
[1747699703354,13.44779339,2536.1,2536.0,2.16008]
[1747699703650,13.44779339,2536.1,2535.9,0.78839]
[1747699703651,0.78838,2536.0,2535.9,0.78839]
[1747699703851,0.78841,2535.9,2535.8,3.50613]
[1747699704044,2.0576,2536.0,2535.9,0.78841]
[1747699704946,0.78841,2535.9,2535.8,2.13013]
[1747699705146,2.05761,2535.9,2535.8,2.13013]
[1747699705351,2.05761,2535.9,2535.8,0.78843]
[1747699705749,0.78844,2535.8,2535.7,3.99626]
[1747699706054,0.78849,2535.7,2535.6,0.78848]
[1747699706245,11.52669128,2535.7,2535.6,0.78848]
[1747699706448,12.82959128,2535.7,2535.6,0.78848]
[1747699708454,12.04110128,2535.7,2535.6,0.78848]
[1747699709149,12.82957128,2535.7,2535.6,0.78848]
[1747699709347,0.7885,2535.6,2535.5,2.13021]
[1747699709542,12.82320128,2535.6,2535.5,0.78851]
[1747699709753,0.78855,2535.5,2535.4,0.78854]
[1747699709944,2.08505,2535.5,2535.4,0.78854]
[1747699710145,12.82325128,2535.5,2535.4,0.78854]
[1747699710347,0.65204211,2535.7,2535.6,0.7885]
[1747699710747,11.39024339,2535.7,2535.6,0.7885]
[1747699710948,12.17873339,2535.7,2535.6,0.7885]
[1747699711245,15.55863339,2535.7,2535.6,0.7885]
[1747699712553,14.13024339,2535.7,2535.6,0.7885]
[1747699712753,3.39204211,2535.7,2535.6,0.7885]
[1747699713847,2.74,2535.7,2535.6,1.3403855]
[1747699714051,0.97940959,2535.8,2535.6,6.9730855]
[1747699714352,0.42540568,2536.1,2536.0,0.78838]
[1747699714553,0.42540568,2536.1,2536.0,3.99618]
[1747699715247,13.90360696,2536.1,2536.0,3.99618]
[1747699715455,3.16540568,2536.1,2536.0,13.31518]
[1747699715958,3.16540568,2536.1,2536.0,13.8670655]
[1747699717156,2.74,2536.1,2536.0,13.8670655]
[1747699723857,13.47820128,2536.1,2536.0,13.8670655]
[1747699724059,14.81780128,2536.1,2536.0,13.8670655]
[1747699724767,14.81780128,2536.1,2536.0,4.5480655]
[1747699726158,14.81780128,2536.1,2536.0,5.9168655]
[1747699726764,14.81780128,2536.1,2536.0,5.36498]
[1747699727369,13.47820128,2536.1,2536.0,5.36498]
[1747699728267,2.74,2536.1,2536.0,5.36498]
[1747699728468,4.74376053,2537.3,2537.2,0.78801]
[1747699728659,10.73820128,2537.2,2537.1,0.78801]
[1747699728859,4.74376053,2537.3,2537.2,0.78801]
[1747699729264,15.48196181,2537.3,2537.2,1.3765]
[1747699729675,24.79896181,2537.3,2537.1,3.2078]
[1747699729862,10.73820128,2537.2,2537.1,3.2078]
[1747699730171,10.73820128,2537.2,2537.0,0.00591378]
[1747699730362,10.73820128,2537.1,2537.0,0.00591378]
[1747699730563,20.05520128,2537.1,2537.0,0.00591378]
[1747699730963,0.78815,2536.8,2536.6,3.2078]
[1747699731161,25.05520128,2537.1,2536.6,3.2078]
[1747699731162,10.73820128,2536.7,2536.6,3.2078]
[1747699731462,19.87120128,2536.7,2536.6,3.2078]
[1747699732371,19.87120128,2536.7,2536.6,3.99599]
[1747699732564,19.87120128,2536.7,2536.5,0.78821]
[1747699732868,10.73820128,2536.5,2536.4,0.79416378]
[1747699733067,9.133,2536.7,2536.6,0.78819]
[1747699733274,9.133,2536.7,2536.6,3.99599]
[1747699733465,19.87120128,2536.7,2536.6,3.99599]
[1747699733660,19.87120128,2536.7,2536.6,3.2078]
[1747699734067,10.73820128,2536.7,2536.6,3.99599]
[1747699734663,10.73820128,2536.7,2536.6,3.2078]
[1747699734963,12.00540128,2536.7,2536.6,3.2078]
[1747699735676,17.00540128,2536.7,2536.6,3.2078]
[1747699735863,17.79356128,2536.7,2536.6,3.2078]
[1747699736060,17.00540128,2536.7,2536.4,0.79416378]
[1747699736261,10.73820128,2536.5,2536.4,0.79416378]
[1747699736768,1.2672,2536.7,2536.6,0.78819]
[1747699736964,1.3714,2537.0,2536.9,0.7881]
[1747699737161,13.2444,2537.0,2536.9,0.7881]
[1747699737365,23.98260128,2537.0,2536.9,0.7881]
[1747699737571,23.98260128,2537.0,2536.8,0.78811]
[1747699737775,10.73820128,2536.8,2536.6,3.2078]
[1747699738074,10.73820128,2536.7,2536.6,3.2078]
[1747699738370,12.12430128,2536.7,2536.6,3.2078]
[1747699738569,12.12430128,2536.7,2536.5,0.78822]
[1747699738765,19.87120128,2536.6,2536.5,0.78822]
[1747699738972,12.12430128,2536.6,2536.5,0.78822]
[1747699739173,23.99730128,2536.6,2536.5,0.78822]
[1747699739973,22.61120128,2536.6,2536.4,0.00591378]
[1747699740175,12.02000128,2536.5,2536.4,0.79416378]
[1747699740672,2.74,2536.6,2536.5,0.78822]
[1747699740873,2.74,2536.6,2536.5,5.27272]
[1747699742271,13.47820128,2536.6,2536.5,3.99602]
[1747699743769,13.47820128,2536.6,2536.5,5.38562]
[1747699744277,13.47820128,2536.6,2536.5,5.93398064]
[1747699744974,2.74,2536.6,2536.5,5.93398064]
[1747699746875,2.74,2536.6,2536.5,10.93398064]
[1747699747079,9.132,2537.3,2537.2,0.78801]
[1747699747576,21.25730128,2537.3,2537.2,0.78801]
[1747699747772,12.12530128,2537.3,2537.2,0.78801]
[1747699747974,21.25730128,2537.3,2537.2,0.78801]
[1747699748175,12.12530128,2537.3,2537.2,0.78801]
[1747699748374,21.25730128,2537.3,2537.2,0.78801]
[1747699748871,12.12530128,2537.3,2537.2,0.78801]
[1747699749073,1.31830368,2537.5,2537.1,1.2531]
[1747699749272,1.31830368,2537.5,2537.4,3.99574]
[1747699749878,1.31830368,2537.5,2537.4,5.36324]
[1747699750275,3.2517899,2538.1,2538.0,0.78776]
[1747699750478,13.98999118,2538.1,2538.0,0.78776]
[1747699750681,12.73669118,2538.1,2538.0,0.78776]
[1747699750982,1.9984899,2538.1,2538.0,2.15526]
[1747699751277,1.3123899,2538.1,2538.0,2.15526]
[1747699754178,12.05059118,2538.1,2537.8,0.00591378]
[1747699754384,11.52599128,2537.9,2537.8,0.00591378]
[1747699754888,12.87429128,2537.9,2537.8,0.00591378]
[1747699755183,16.52599128,2537.9,2537.8,0.00591378]
[1747699755485,7.82899,2537.9,2537.8,0.00591378]
[1747699755685,22.69719128,2537.9,2537.8,0.00591378]
[1747699756582,27.69719128,2537.9,2537.8,0.00591378]
[1747699758390,22.69719128,2537.9,2537.8,0.00591378]
[1747699758789,13.56719128,2537.9,2537.8,0.00591378]
[1747699758991,22.69719128,2537.9,2537.8,0.00591378]
[1747699759191,21.90940128,2537.9,2537.8,0.00591378]
[1747699759393,22.69719128,2537.9,2537.8,0.00591378]
[1747699759787,13.56719128,2537.9,2537.8,0.00591378]
[1747699759990,22.69719128,2537.9,2537.8,0.00591378]
[1747699760190,13.56719128,2537.9,2537.8,0.00591378]
[1747699760391,22.69719128,2537.9,2537.8,0.00591378]
[1747699761690,22.69719128,2537.9,2537.8,0.79373378]
[1747699761892,21.90940128,2537.9,2537.8,0.79373378]
[1747699762088,12.77940128,2537.9,2537.8,0.79373378]
[1747699762589,13.56719128,2537.9,2537.8,4.00153378]
[1747699762790,13.56719128,2537.9,2537.8,3.21371378]
[1747699763287,13.56719128,2537.9,2537.8,4.00153378]
[1747699763500,12.77940128,2537.9,2537.8,4.00153378]
[1747699763994,13.56719128,2537.9,2537.8,3.21371378]
[1747699764190,13.56719128,2537.9,2537.8,0.00591378]
[1747699764387,0.78788,2537.6,2537.5,3.2078]
[1747699764592,20.40908128,2537.6,2537.5,3.2078]
[1747699764995,0.78801,2537.2,2537.1,0.78801]
[1747699765196,11.52621128,2537.2,2537.0,5.36145]
[1747699765501,10.73820128,2537.2,2537.0,4.5734]
[1747699765701,10.73820128,2537.2,2537.1,0.78804]
[1747699768297,2.76653,2537.5,2537.4,0.78794]
[1747699768298,0.6601,2537.5,2537.4,0.78794]
[1747699768498,1.3495,2537.7,2537.6,0.78788]
[1747699769000,12.08770128,2537.7,2537.6,0.78788]
[1747699769202,12.87555128,2537.7,2537.6,1.2888]
[1747699769404,0.78793,2537.5,2537.3,2.10367]
[1747699769598,11.52613128,2537.5,2537.3,2.10367]
[1747699769896,2.13736,2537.7,2537.3,2.6045]
[1747699770104,10.73820128,2537.5,2537.4,0.78794]
[1747699770305,10.73820128,2537.5,2537.4,2.14074]
[1747699770506,2.13736,2537.7,2537.5,0.7879]
[1747699770702,0.78788,2537.6,2537.5,2.1407]
[1747699770895,12.80578128,2537.6,2537.5,1.3528]
[1747699771500,12.80578128,2537.6,2537.5,2.14071]
[1747699771908,12.01790128,2537.6,2537.5,2.14071]
[1747699772313,10.73820128,2537.6,2537.5,5.34851]
[1747699773406,11.52608128,2537.6,2537.5,4.5606]
[1747699773599,12.79208128,2537.6,2537.5,5.34851]
[1747699773799,12.79208128,2537.6,2537.5,1.3528]
[1747699774006,12.79208128,2537.6,2537.5,2.14071]
[1747699774208,12.00420128,2537.6,2537.5,2.14071]
[1747699775808,12.79208128,2537.6,2537.5,2.14071]
[1747699776007,12.00420128,2537.6,2537.5,2.14071]
[1747699777506,10.73820128,2537.6,2537.5,5.34851]
[1747699778609,10.73820128,2537.6,2537.5,2.14071]
[1747699779309,0.78794,2537.5,2537.3,0.78795]
[1747699779510,11.52614128,2537.5,2537.4,2.04564]
[1747699779706,0.78794,2537.5,2537.4,2.04564]
[1747699780605,2.09354,2537.5,2537.4,2.04564]
[1747699781408,2.09354,2537.5,2537.2,3.2078]
[1747699781409,12.04380128,2537.5,2537.2,3.2078]
[1747699781610,11.52618128,2537.3,2537.2,3.99578]
[1747699782014,10.73820128,2537.3,2537.2,3.99578]
[1747699782915,2.09353,2537.5,2537.4,0.78794]
[1747699783307,12.83173128,2537.5,2537.4,0.78794]
[1747699784013,0.78794,2537.4,2537.3,1.3158]
[1747699784217,0.78797,2537.3,2537.2,3.2078]
[1747699784408,21.10117128,2537.3,2537.2,3.2078]
[1747699784712,22.42127128,2537.3,2537.2,3.2078]
[1747699788217,19.62120128,2537.3,2537.2,3.99581]
[1747699788718,8.883,2537.4,2537.3,0.78797]
[1747699789018,8.883,2537.4,2537.3,2.05487]
[1747699789221,19.62120128,2537.4,2537.3,3.37794231]
[1747699789611,0.78797,2537.3,2537.2,3.9958]
[1747699789810,11.52617128,2537.3,2537.2,3.9958]
[1747699790010,2.16187,2537.3,2537.2,3.9958]
[1747699791521,1.3739,2537.3,2537.2,3.9958]
[1747699792521,12.90008128,2537.3,2537.2,0.788]
[1747699792913,0.78803,2537.2,2537.1,0.78803]
[1747699793117,0.78804,2537.1,2537.0,0.78806]
[1747699793423,12.84823128,2537.2,2537.0,0.78806]
[1747699793614,12.84823128,2537.2,2537.1,0.78804]
[1747699793920,12.06020128,2537.2,2537.1,0.78804]
[1747699794121,0.78805,2537.1,2537.0,0.78806]
[1747699794617,2.10425,2537.1,2537.0,0.78806]
[1747699794814,12.84246128,2537.1,2537.0,0.78807]
[1747699795018,12.84245128,2537.1,2537.0,0.78807]
[1747699795213,12.05440128,2537.1,2537.0,0.78807]
[1747699795418,10.73820128,2537.1,2537.0,0.78807]
[1747699797623,12.12370128,2537.1,2537.0,0.78807]
[1747699800323,0.7881,2536.9,2536.8,0.00591378]
[1747699800521,11.52630128,2536.9,2536.8,0.00591378]
[1747699801038,18.20067407,2536.9,2536.8,0.00591378]
[1747699801230,17.87870128,2536.9,2536.8,0.00591378]
[1747699801418,12.87870128,2536.9,2536.8,0.00591378]
[1747699802720,14.19109118,2536.9,2536.8,0.00591378]
[1747699803118,19.49831304,2536.9,2536.8,0.00591378]
[1747699803323,0.78825,2536.4,2536.2,0.78829]
[1747699803524,11.52645128,2536.4,2536.3,0.78829]
[1747699803821,0.78825,2536.4,2536.3,0.78829]
[1747699804029,0.78824,2536.5,2536.4,0.78825]
[1747699804328,0.78829,2536.3,2536.2,0.00591378]
[1747699804521,11.52649128,2536.3,2536.2,0.00591378]
[1747699804716,20.14249128,2536.3,2536.2,0.00591378]
[1747699804922,21.40869128,2536.3,2536.2,0.00591378]
[1747699805217,21.40869128,2536.3,2535.7,0.73831677]
[1747699805218,0.78844,2535.8,2535.7,0.73831677]
[1747699805423,20.14264128,2535.8,2535.7,0.73831677]
[1747699805724,0.78851,2535.6,2535.4,4.64855]
[1747699805923,11.52671128,2535.6,2535.4,4.64855]
[1747699806124,9.40451,2535.6,2535.4,4.64855]
[1747699806431,9.40651,2535.6,2535.4,4.64855]
[1747699806824,1.8933,2535.9,2535.7,0.78845]
[1747699807026,8.618,2535.8,2535.7,0.78845]
[1747699807225,9.40643,2535.9,2535.7,3.99625]
[1747699807430,9.40643,2535.9,2535.8,0.6726]
[1747699808027,8.618,2535.9,2535.8,1.46104]
[1747699808325,9.40641,2535.9,2535.8,0.6726]
[1747699809029,9.40641,2535.9,2535.4,3.86]
[1747699809030,9.40644,2535.9,2535.4,3.86]
[1747699809230,0.78844,2535.8,2535.7,3.99627]
[1747699809431,9.40642,2535.9,2535.7,3.2078]
[1747699809632,20.14462128,2535.9,2535.8,1.3124]
[1747699813437,11.52662128,2535.9,2535.8,1.3124]
[1747699814637,20.14562128,2535.9,2535.8,1.3124]
[1747699815939,0.7885,2535.6,2535.5,0.6835]
[1747699816731,0.78849,2535.7,2535.5,0.6835]
[1747699816938,11.52669128,2535.7,2535.5,0.6835]
[1747699817333,10.73820128,2535.7,2535.6,0.7885]
[1747699817541,8.62,2535.9,2535.8,0.78844]
[1747699817733,0.78836,2536.1,2536.0,0.78837]
[1747699818038,0.78835,2536.1,2536.0,0.78837]
[1747699818332,0.98552247,2536.6,2536.5,0.78822]
[1747699818733,0.00591378,2536.7,2536.6,0.78819]
[1747699818937,10.74411506,2536.7,2536.6,0.78819]
[1747699819136,10.74411506,2536.7,2536.6,1.44519]
[1747699819337,10.74411506,2536.7,2536.6,2.11569]
[1747699819639,0.78819,2536.6,2536.5,1.3669]
[1747699820039,0.79408378,2536.7,2536.5,2.15511]
[1747699820339,11.53228506,2536.7,2536.5,2.15511]
[1747699820532,11.53228506,2536.7,2536.6,0.78819]
[1747699820731,10.74411506,2536.7,2536.6,0.78819]
[1747699821038,0.00591378,2536.7,2536.6,0.78819]
[1747699822537,0.00591378,2536.7,2536.6,5.78819]
[1747699825244,0.00591378,2536.7,2536.6,0.78819]
[1747699836949,9.9162,2537.5,2536.7,1.9704]
[1747699837150,1.3272,2537.5,2537.4,0.78794]
[1747699837351,2.11511,2537.5,2537.4,0.78794]
[1747699837550,14.12783128,2537.5,2537.4,0.78794]
[1747699837753,0.78795,2537.4,2537.3,0.78796]
[1747699837953,12.80065128,2537.4,2537.3,0.78796]
[1747699838556,12.01270128,2537.4,2537.3,0.78796]
[1747699839454,12.80064128,2537.4,2537.3,0.78796]
[1747699839649,12.01270128,2537.4,2537.1,3.21371378]
[1747699839853,11.52621128,2537.2,2537.1,3.21371378]
[1747699840052,20.11521128,2537.2,2537.1,0.00591378]
[1747699840255,0.78813,2536.8,2536.7,3.2078]
[1747699840553,0.78825,2536.4,2536.3,0.73831677]
[1747699840857,23.32325128,2536.4,2536.3,0.73831677]
[1747699841156,71.86325128,2536.4,2536.3,0.73831677]
[1747699841463,0.78832,2536.2,2536.1,1.09754055]
[1747699841753,11.52652128,2536.2,2536.1,1.09754055]
[1747699841957,0.78841,2535.9,2535.8,1.46449611]
[1747699842259,0.7885,2535.7,2535.5,0.78853]
[1747699842449,1.358,2535.6,2535.5,0.78853]
[1747699842757,12.09620128,2535.6,2535.5,0.78853]
[1747699843149,14.83620128,2535.6,2535.4,3.2078]
[1747699843350,11.38560128,2535.5,2535.4,3.99637]
[1747699843549,12.73780128,2535.5,2535.4,3.99637]
[1747699844157,15.47780128,2535.5,2535.4,3.99637]
[1747699847755,16.26633128,2535.5,2535.4,3.2078]
[1747699847955,24.06880128,2535.5,2535.1,3.99644]
[1747699848156,11.52681128,2535.3,2535.1,3.99644]
[1747699848457,1.3148,2535.2,2535.1,3.99644]
[1747699849158,4.0548,2535.2,2535.1,3.99644]
[1747699849463,2.74,2535.2,2535.1,3.99644]
[1747699854075,1.3488,2535.7,2535.6,0.7885]
[1747699854274,10.73820128,2535.6,2535.5,0.78851]
[1747699854577,2.13727,2535.7,2535.5,0.78851]
[1747699854771,12.08700128,2535.6,2535.5,0.78851]
[1747699855071,14.82700128,2535.6,2535.5,0.78851]
[1747699855464,13.47820128,2535.6,2535.5,0.78851]
[1747699857175,13.47820128,2535.6,2535.5,2.04261]
[1747699857565,13.47820128,2535.6,2535.5,2.72621]
[1747699858673,2.74,2535.6,2535.5,2.72621]
[1747699859374,7.11e-06,2535.6,2535.5,7.72621]
[1747699859569,8.9e-07,2535.8,2535.7,0.78847]
[1747699859776,8.9e-07,2535.8,2535.7,3.99627]
[1747699859967,8.9e-07,2535.8,2535.7,8.99627]
[1747699861176,1.12017089,2535.8,2535.7,8.99627]
[1747699861378,8.582,2536.7,2536.5,0.78822]
[1747699861578,8.582,2536.7,2536.6,0.78819]
[1747699861977,19.32020128,2536.7,2536.6,0.78819]
[1747699862177,13.47820128,2536.7,2536.6,0.78819]
[1747699862676,13.47820128,2536.7,2536.4,3.2078]
[1747699862984,11.52642128,2536.5,2536.4,3.2078]
[1747699863279,13.47820128,2536.5,2536.4,3.99605]
[1747699863977,2.74,2536.5,2536.4,3.99605]
[1747699864384,1.94714,2536.5,2536.4,3.99605]
[1747699864685,0.00591378,2536.9,2536.8,0.78813]
[1747699864982,0.00591378,2536.9,2536.8,3.99593]
[1747699865785,0.00591378,2536.9,2536.8,5.28973]
[1747699870087,10.74411506,2536.9,2536.8,5.28973]
[1747699870389,10.74411506,2536.9,2536.8,3.99593]
[1747699871388,10.74411506,2536.9,2536.8,4.65243]
[1747699871588,0.00591378,2536.9,2536.8,4.65243]
[1747699872788,0.00591378,2536.9,2536.8,5.95543]
[1747699873490,3.78e-06,2536.9,2536.8,16.90143]
[1747699873689,3.78e-06,2536.9,2536.8,17.40509014]
[1747699874081,3.78e-06,2536.9,2536.8,17.7177402]
[1747699874981,0.9807663,2538.1,2536.8,20.8701802]
[1747699875175,0.9807663,2538.1,2537.9,3.2078]
[1747699875479,0.9807663,2538.1,2538.0,2.04926]
[1747699875880,11.71896758,2538.1,2538.0,2.04926]
[1747699878195,10.73820128,2538.1,2538.0,2.04926]
[1747699878881,0.00591378,2538.3,2538.2,0.7877]
[1747699879089,3.78e-06,2538.3,2538.2,9.9415]
[1747699879284,3.78e-06,2538.3,2538.2,14.9415]
[1747699880193,3.1206027,2539.0,2538.9,0.78748]
[1747699880379,3.1206027,2539.0,2538.9,3.99528]
[1747699880585,9.88980141,2539.0,2538.9,3.99528]
[1747699881389,11.14250141,2539.0,2538.9,3.99528]
[1747699882995,11.14250141,2539.0,2538.9,3.2078]
[1747699883586,11.14250141,2539.0,2538.9,3.99528]
[1747699884092,0.78748,2538.9,2538.6,3.99536]
[1747699884289,1.2619,2538.8,2538.7,0.78754]
[1747699884690,11.14646128,2538.8,2538.7,0.78754]
[1747699884990,11.93399128,2538.8,2538.6,3.99536]
[1747699885193,10.67210128,2538.7,2538.6,3.2078]
[1747699885391,11.93400128,2538.7,2538.6,3.2078]
[1747699886296,11.14646128,2538.7,2538.6,3.99537]
[1747699887798,16.93400128,2538.7,2538.6,3.2078]
[1747699887999,11.14646128,2538.7,2538.6,3.2078]
[1747699888295,11.14646128,2538.7,2538.6,3.99537]
[1747699888894,9.88456128,2538.7,2538.6,3.99537]
[1747699892597,0.00524013,2539.0,2538.9,0.78748]
[1747699892995,9.88980141,2539.0,2538.9,0.78748]
[1747699893194,10.67727141,2539.0,2538.7,2.11582]
[1747699893393,9.88456128,2538.8,2538.7,2.11582]
[1747699895002,0.00524013,2539.0,2538.9,0.78748]
[1747699895204,0.00524013,2539.0,2538.9,3.99528]
[1747699895504,9.88980141,2539.0,2538.9,3.99528]
[1747699898210,0.00524013,2539.0,2538.9,3.99528]
[1747699899116,9.88980141,2539.0,2538.9,3.99528]
[1747699900102,0.00524013,2539.0,2538.9,3.99528]
[1747699901306,0.00524013,2539.0,2538.9,4.50126825]
[1747699904705,0.00524013,2539.0,2538.9,13.05726825]
[1747699905515,0.00524013,2539.0,2538.9,4.50126825]
[1747699906218,9.88980141,2539.0,2538.9,4.50126825]
[1747699906413,10.57580141,2539.0,2538.9,3.71378825]
[1747699906606,10.57580141,2539.0,2538.9,5.01275103]
[1747699906817,11.82960141,2539.0,2538.9,5.01275103]
[1747699907310,11.82960141,2539.0,2538.9,4.22527103]
[1747699907613,11.82960141,2539.0,2538.9,4.50676278]
[1747699909003,11.82960141,2539.0,2538.9,3.99528]
[1747699909212,11.14360141,2539.0,2538.9,3.99528]
[1747699910102,11.14360141,2539.0,2538.9,4.50289048]
[1747699911608,9.88980141,2539.0,2538.9,4.50289048]
[1747699914508,0.00524013,2539.0,2538.9,4.50289048]
[1747699915719,0.00524013,2539.0,2538.9,5.01437326]
[1747699915914,1.3e-07,2539.0,2538.9,10.01437326]
[1747699916120,3.91e-06,2539.2,2539.1,0.78742]
[1747699916423,3.91e-06,2539.2,2539.1,9.32542]
[1747699916813,3.91e-06,2539.2,2539.1,9.83303048]
[1747699917816,9.88456519,2539.2,2539.1,9.83303048]
[1747699918021,9.88456519,2539.2,2539.1,1.29503048]
[1747699918522,9.88456519,2539.2,2539.1,0.50761048]
[1747699918815,9.88456519,2539.2,2539.1,1.29503048]
[1747699919020,11.13866519,2539.2,2539.1,1.29503048]
[1747699919221,11.13866519,2539.2,2539.1,0.50761048]
[1747699919419,11.13866519,2539.2,2539.1,1.29503048]
[1747699919824,11.13866519,2539.2,2539.1,0.78742]
[1747699919825,9.88456519,2539.2,2539.1,0.78742]
[1747699920025,3.91e-06,2539.2,2539.1,0.78742]
[1747699922432,3.91e-06,2539.2,2539.1,1.29412571]
[1747699924733,2.2348663,2539.5,2539.1,1.29412571]
[1747699924734,2.1e-07,2539.5,2539.4,0.78732]
[1747699924943,2.1e-07,2539.5,2539.4,8.99512]
[1747699925538,1.3123899,2539.8,2539.7,0.78723]
[1747699925746,1.3123899,2539.8,2539.7,13.03873571]
[1747699926140,11.19695118,2539.8,2539.7,13.03873571]
[1747699926342,11.19695118,2539.8,2539.7,4.50173571]
[1747699926651,13.34005118,2539.8,2539.7,3.71450571]
[1747699926942,12.55285118,2539.8,2539.7,4.50173571]
[1747699927253,12.55285118,2539.8,2539.7,3.71450571]
[1747699927546,12.55285118,2539.8,2539.7,4.50173571]
[1747699927747,12.55285118,2539.8,2539.7,3.71450571]
[1747699928045,0.00591378,2540.0,2539.7,3.71450571]
[1747699928046,0.00591378,2540.0,2539.9,0.78717]
[1747699928440,5.35607496,2540.0,2539.9,0.78717]
[1747699928646,6.74587496,2540.0,2539.9,0.78717]
[1747699928842,0.00591378,2540.0,2539.9,0.78717]
[1747699929149,5.35607496,2540.0,2539.9,2.05507]
[1747699929538,0.00591378,2540.0,2539.9,2.05507]
[1747699929941,0.00591378,2540.0,2539.9,2.5611092]
[1747699930340,3.78e-06,2540.0,2539.9,7.5611092]
[1747699931445,3.78e-06,2540.0,2539.9,2.5611092]
[1747699932345,0.6943,2540.7,2539.9,2.5611092]
[1747699932346,1.62839796,2541.0,2540.3,1.96755]
[1747699932550,5.35016118,2540.6,2540.5,0.78698]
[1747699932745,5.35016118,2540.6,2540.5,5.25918]
[1747699932948,0.6476,2540.9,2540.5,4.4722]
[1747699933154,5.35016118,2540.6,2540.5,2.05138]
[1747699933455,5.35016118,2540.6,2540.5,5.25918]
[1747699934449,1.3835,2540.8,2540.7,0.78692]
[1747699934951,6.73366118,2540.8,2540.7,0.78692]
[1747699935350,6.73366118,2540.8,2540.5,3.2078]
[1747699935650,5.35016118,2540.6,2540.5,3.99478]
[1747699936040,7.35886118,2540.6,2540.5,3.99478]
[1747699936644,8.14581118,2540.6,2540.5,3.2078]
[1747699937052,13.14581118,2540.6,2540.5,3.2078]
[1747699937442,12.35886118,2540.6,2540.3,0.78702]
[1747699937751,5.35016118,2540.4,2540.3,0.78704]
[1747699938252,11.60316118,2540.4,2540.3,0.78704]
[1747699938444,0.78705,2540.3,2540.2,0.78707]
[1747699938650,1.9557,2540.3,2540.1,3.2078]
[1747699938855,6.13723118,2540.2,2540.1,3.2078]
[1747699939055,7.39023118,2540.2,2540.1,3.99491]
[1747699939352,6.60316118,2540.2,2540.1,3.99491]
[1747699939648,0.6921,2540.6,2540.5,0.78698]
[1747699939843,0.6699,2540.9,2540.8,0.78689]
[1747699940241,6.02006118,2540.9,2540.8,0.78689]
[1747699940449,6.02006118,2540.9,2540.8,2.08699]
[1747699942351,5.35016118,2540.9,2540.8,2.08699]
[1747699942751,5.35651621,2540.9,2540.8,2.08699]
[1747699943148,0.00635503,2540.9,2540.8,2.79809]
[1747699943854,5.35651621,2540.9,2540.8,2.79809]
[1747699944154,0.00635503,2540.9,2540.8,2.79809]
[1747699944752,0.00635503,2540.9,2540.8,7.79809]
[1747699945056,0.00635503,2540.9,2540.8,2.79809]
[1747699945651,0.00635503,2540.9,2540.8,2.0112]
[1747699945855,5.35651621,2540.9,2540.8,1.3001]
[1747699946058,5.35651621,2540.9,2540.8,2.08699]
[1747699946661,5.35651621,2540.9,2540.8,1.3001]
[1747699946860,5.35651621,2540.9,2540.8,2.08699]
[1747699947057,5.35016118,2540.9,2540.8,2.08699]
[1747699947357,0.00591378,2541.0,2540.9,0.78686]
[1747699947552,3.78e-06,2541.0,2540.9,2.72196]
[1747699947752,3.78e-06,2541.0,2540.9,3.2260954]
[1747699949948,0.6662,2542.2,2541.1,1.96698]
[1747699950151,0.78649,2542.1,2541.9,3.2078]
[1747699950551,1.2873,2542.1,2541.9,3.2078]
[1747699950754,1.2873,2542.1,2541.9,4.5251]
[1747699950954,9.3714,2542.4,2541.9,5.31163]